fUST/lending_fUST_20251030
["ID","MTS","AMOUNT","RATE_DAILY","PERIOD"]
[392627913,1761760247991,-250.0,0.00022626,2]
[392627914,1761760248001,-151.0,0.00022626,2]
[392627915,1761760248019,-151.0,0.00022626,2]
[392627916,1761760248029,-151.0,0.00022626,2]
[392627917,1761760248038,-587.0,0.000227,2]
[392627918,1761760248047,-500.0,0.00022734,5]
[392627919,1761760248057,-10530.26,0.000228,7]
[392627920,1761760248066,-403.72361849,0.000228,7]
[392627921,1761760248076,-3356.84731347,0.0002281,2]
[392627922,1761760248085,-6073.96922435,0.00022855,2]
[392627923,1761760248094,-360.0,0.00022896,2]
[392627924,1761760248103,-179.0,0.00022921,2]
[392627925,1761760248112,-500.0,0.00023008,5]
[392627926,1761760248122,-18350.28118954,0.00023012,2]
[392627927,1761760248131,-168.54296332,0.00023129,2]
[392627928,1761760248141,-633.0,0.0002315,2]
[392627929,1761760248151,-984.0,0.0002315,2]
[392627930,1761760248160,-2167.0,0.0002315,2]
[392627931,1761760248170,-151.0,0.00023174,2]
[392627932,1761760248179,-198.97225457,0.00023174,2]
[392627933,1761760248353,-187.78006525,0.00023174,2]
[392627934,1761760248364,-151.0,0.000232,6]
[392627935,1761760248375,-151.0,0.000232,10]
[392627936,1761760248384,-500.0,0.00023282,5]
[392627937,1761760248393,-403.72361849,0.00023288,30]
[392627938,1761760248402,-95000.0,0.00023288,30]
[392627939,1761760248413,-151.0,0.00023288,7]
[392627940,1761760248423,-151.0,0.00023288,7]
[392627941,1761760248432,-151.0,0.00023288,7]
[392627942,1761760248441,-151.0,0.00023288,7]
[392627943,1761760248451,-151.0,0.00023288,7]
[392627944,1761760248460,-151.0,0.00023288,7]
[392627945,1761760248469,-151.0,0.00023288,7]
[392627946,1761760248478,-151.0,0.00023288,7]
[392627947,1761760248487,-160.775911,0.00023288,7]
[392627948,1761760248496,-151.0,0.00023288,7]
[392627949,1761760248505,-151.0,0.00023288,7]
[392627950,1761760248514,-151.0,0.00023288,7]
[392627951,1761760248523,-212.126842,0.00023288,7]
[392627952,1761760248532,-154.992676,0.00023288,7]
[392627953,1761760248541,-211.302599,0.00023288,7]
[392627954,1761760248550,-151.0,0.00023288,7]
[392627955,1761760248559,-151.0,0.00023288,7]
[392627956,1761760248568,-151.0,0.00023288,7]
[392627957,1761760248577,-151.0,0.00023288,7]
[392627958,1761760248586,-151.0,0.00023288,7]
[392627959,1761760248595,-151.0,0.00023288,7]
[392627960,1761760248604,-151.0,0.00023288,7]
[392627961,1761760248614,-151.0,0.00023288,7]
[392627962,1761760248623,-151.0,0.00023288,7]
[392627963,1761760248632,-208.386623,0.00023288,7]
[392627964,1761760248642,-151.0,0.00023288,7]
[392627965,1761760248651,-151.0,0.00023288,7]
[392627966,1761760248661,-240.567493,0.00023288,7]
[392627967,1761760248670,-240.567493,0.00023288,7]
[392627968,1761760248681,-240.567493,0.00023288,7]
[392627969,1761760248691,-240.567493,0.00023288,7]
[392627970,1761760248700,-403.066036,0.00023288,7]
[392627971,1761760248709,-151.0,0.00023288,7]
[392627972,1761760248718,-209.456135,0.00023288,7]
[392627973,1761760248728,-403.066036,0.00023288,7]
[392627974,1761760248738,-209.456135,0.00023288,7]
[392627975,1761760248746,-151.0,0.00023288,7]
[392627976,1761760248756,-209.456135,0.00023288,7]
[392627977,1761760248766,-403.066036,0.00023288,7]
[392627978,1761760248775,-209.456135,0.00023288,7]
[392627979,1761760248785,-403.066036,0.00023288,7]
[392627980,1761760248804,-151.0,0.00023288,7]
[392627981,1761760248814,-151.0,0.00023288,2]
[392627982,1761760248824,-151.0,0.00023288,7]
[392627983,1761760248834,-151.0,0.00023288,7]
[392627984,1761760248844,-151.0,0.00023288,7]
[392627985,1761760248855,-674.949902,0.00023288,7]
[392627986,1761760248866,-151.0,0.00023288,7]
[392627987,1761760248875,-674.949902,0.00023288,7]
[392627988,1761760248885,-674.949902,0.00023288,7]
[392627989,1761760248897,-151.0,0.00023288,7]
[392627990,1761760248908,-674.949902,0.00023288,7]
[392627991,1761760248921,-151.0,0.00023288,7]
[392627992,1761760248930,-151.0,0.00023288,7]
[392627993,1761760248940,-151.0,0.00023288,7]
[392627994,1761760248950,-151.0,0.00023288,7]
[392627995,1761760248959,-151.0,0.00023288,7]
[392627996,1761760248968,-216.043302,0.00023288,7]
[392627997,1761760248978,-151.0,0.00023288,7]
[392627998,1761760248988,-151.0,0.00023288,7]
[392627999,1761760248997,-183.56424,0.00023288,7]
[392628000,1761760249012,-151.0,0.00023288,7]
[392628001,1761760249021,-151.0,0.00023288,7]
[392628002,1761760249030,-151.0,0.00023288,7]
[392628003,1761760249040,-154.969891,0.00023288,7]
[392628004,1761760249049,-151.0,0.00023288,7]
[392628005,1761760249060,-154.969891,0.00023288,7]
[392628006,1761760249070,-154.969891,0.00023288,7]
[392628007,1761760249079,-154.969891,0.00023288,7]
[392628008,1761760249088,-151.0,0.00023288,7]
[392628009,1761760249098,-152.830396,0.00023288,7]
[392628010,1761760249107,-151.0,0.00023288,7]
[392628011,1761760249117,-151.0,0.00023288,7]
[392628012,1761760249126,-151.0,0.00023288,7]
[392628013,1761760249136,-151.0,0.00023288,7]
[392628014,1761760249146,-151.0,0.00023288,7]
[392628015,1761760249156,-151.0,0.00023288,7]
[392628016,1761760249166,-151.0,0.00023288,7]
[392628017,1761760249175,-151.0,0.00023288,7]
[392628018,1761760249185,-151.0,0.00023288,7]
[392628019,1761760249194,-151.0,0.00023288,7]
[392628020,1761760249204,-151.0,0.00023288,7]
[392628021,1761760249213,-151.0,0.00023288,7]
[392628022,1761760249222,-151.0,0.00023288,7]
[392628023,1761760249233,-4595.694328,0.00023288,7]
[392628024,1761760249242,-151.0,0.00023288,7]
[392628025,1761760249252,-4595.694328,0.00023288,7]
[392628026,1761760249261,-4595.694328,0.00023288,7]
[392628027,1761760249271,-4595.694328,0.00023288,7]
[392628028,1761760249281,-151.0,0.00023288,7]
[392628029,1761760249290,-151.0,0.00023288,7]
[392628030,1761760249299,-151.0,0.00023288,7]
[392628031,1761760249308,-151.0,0.00023288,7]
[392628032,1761760249318,-151.0,0.00023288,7]
[392628033,1761760249328,-151.0,0.00023288,7]
[392628034,1761760249337,-244.919,0.00023288,7]
[392628035,1761760249347,-151.0,0.00023288,7]
[392628036,1761760249356,-391.3,0.00023294,2]
[392628037,1761760249366,-151.0,0.00023321,7]
[392628038,1761760249376,-151.0,0.00023321,7]
[392628039,1761760249385,-154.951623,0.00023321,7]
[392628040,1761760249394,-151.456638,0.00023321,7]
[392628041,1761760249404,-151.0,0.00023321,7]
[392628042,1761760249414,-154.951623,0.00023321,7]
[392628043,1761760249423,-154.951623,0.00023321,7]
[392628044,1761760249432,-151.0,0.00023321,7]
[392628045,1761760249441,-154.951623,0.00023321,7]
[392628046,1761760249451,-151.0,0.00023321,7]
[392628047,1761760249459,-151.0,0.00023321,7]
[392628048,1761760249468,-151.0,0.00023321,7]
[392628049,1761760249479,-151.0,0.00023321,7]
[392628050,1761760249488,-151.0,0.00023321,7]
[392628051,1761760249497,-180.0180018,0.00023341,2]
[392628052,1761760249507,-1466.85478021,0.00023435,2]
[392628053,1761760249516,-151.0,0.000235,8]
[392628054,1761760249526,-8746.51568307,0.00023531,2]
[392628055,1761760249536,-1204.77932094,0.00023531,2]
[392628056,1761760249546,-500.0,0.00023556,5]
[392628057,1761760249555,-3600.80074929,0.00023565,2]
[392628058,1761760249567,-151.0,0.000237,6]
[392628059,1761760249577,-151.0,0.000237,9]
[392628060,1761760249587,-151.0,0.00023722,2]
[392628061,1761760249597,-206.33422799,0.00023722,2]
[392628062,1761760249606,-194.72792766,0.00023722,2]
[392628063,1761760249615,-391.488827,0.00023731,2]
[392628064,1761760249625,-367.82843116,0.0002375,2]
[392628065,1761760249634,-587.46,0.0002383,5]
[392628066,1761760249644,-5000.0,0.00023879,2]
[392628067,1761760249653,-179.07929863,0.00023945,2]
[392628068,1761760249665,-151.0,0.00024012,7]
[392628069,1761760249674,-151.0,0.00024012,7]
[392628070,1761760249684,-151.0,0.00024012,7]
[392628071,1761760249693,-151.0,0.00024012,7]
[392628072,1761760249703,-270.381594,0.00024012,7]
[392628073,1761760249713,-151.0,0.00024012,7]
[392628074,1761760249722,-214.66511427,0.00024023,5]
[392628075,1761760249731,-391.3,0.00024039,2]
[392628076,1761760249741,-502.882,0.00024071,2]
[392628077,1761760249751,-250.5,0.00024152,2]
[392628078,1761760249760,-1039.83268167,0.0002417,3]
[392628079,1761760249769,-179.07929863,0.00024247,2]
[392628080,1761760249778,-151.0,0.00024254,7]
[392628081,1761760249788,-151.0,0.00024254,7]
[392628082,1761760249797,-151.0,0.00024254,7]
[392628083,1761760249806,-151.0,0.00024254,7]
[392628084,1761760249816,-151.0,0.00024254,7]
[392628085,1761760249825,-154.271731,0.00024254,7]
[392628086,1761760249834,-151.0,0.00024254,7]
[392628087,1761760249843,-151.0,0.00024254,7]
[392628088,1761760249852,-151.0,0.00024254,7]
[392628089,1761760249864,-151.0,0.00024254,7]
[392628090,1761760249874,-151.0,0.00024254,7]
[392628091,1761760249883,-151.0,0.00024254,7]
[392628092,1761760249892,-151.50853,0.00024254,7]
[392628093,1761760249901,-161.484222,0.00024254,7]
[392628094,1761760249911,-174.49065981,0.0002427,2]
[392628095,1761760249921,-213.96859442,0.0002427,2]
[392628096,1761760249930,-201.93286099,0.0002427,2]
[392628097,1761760249940,-461.0,0.00024283,7]
[392628098,1761760249949,-151.0,0.000243,9]
[392628099,1761760249958,-151.0,0.000243,6]
[392628100,1761760249968,-460.0,0.00024356,7]
[392628101,1761760249978,-177.19543344,0.000246,3]
[392628102,1761760249987,-460.0,0.00024628,2]
[392628103,1761760249996,-168.0,0.00024657,2]
[392628104,1761760250010,-380.0,0.00024658,2]
[392628105,1761760250020,-200.0,0.00024658,2]
[392628106,1761760250030,-151.0,0.00024658,7]
[392628107,1761760250039,-200.0,0.00024658,15]
[392628108,1761760250051,-229.627644,0.00024658,7]
[392628109,1761760250060,-168.0,0.00024733,2]
[392628110,1761760250069,-600.0,0.00024741,2]
[392628111,1761760250081,-391.3,0.00024784,2]
[392628112,1761760250091,-4000.0,0.00024799,4]
[392628113,1761760250100,-151.0,0.000248,7]
[392628114,1761760250109,-151.0,0.000248,7]
[392628115,1761760250119,-151.0,0.000248,7]
[392628116,1761760250128,-151.0,0.000248,7]
[392628117,1761760250138,-151.0,0.000248,7]
[392628118,1761760250147,-151.0,0.000248,7]
[392628119,1761760250157,-153.317922,0.000248,7]
[392628120,1761760250166,-151.0,0.000248,7]
[392628121,1761760250176,-151.0,0.000248,7]
[392628122,1761760250185,-151.0,0.000248,7]
[392628123,1761760250194,-151.932865,0.000248,7]
[392628124,1761760250203,-151.0,0.000248,7]
[392628125,1761760250212,-151.0,0.000248,7]
[392628126,1761760250222,-151.0,0.000248,7]
[392628127,1761760250233,-151.0,0.000248,7]
[392628128,1761760250242,-151.0,0.000248,7]
[392628129,1761760250252,-240.567493,0.000248,7]
[392628130,1761760250262,-240.567493,0.000248,7]
[392628131,1761760250272,-240.567493,0.000248,7]
[392628132,1761760250281,-240.567493,0.000248,7]
[392628133,1761760250290,-403.066036,0.000248,7]
[392628134,1761760250299,-151.0,0.000248,7]
[392628135,1761760250309,-209.456135,0.000248,7]
[392628136,1761760250318,-403.066036,0.000248,7]
[392628137,1761760250328,-209.456135,0.000248,7]
[392628138,1761760250337,-151.0,0.000248,7]
[392628139,1761760250347,-209.456135,0.000248,7]
[392628140,1761760250357,-403.066036,0.000248,7]
[392628141,1761760250367,-209.456135,0.000248,7]
[392628142,1761760250377,-403.066036,0.000248,7]
[392628143,1761760250386,-151.0,0.000248,7]
[392628144,1761760250396,-151.0,0.000248,2]
[392628145,1761760250406,-151.0,0.000248,7]
[392628146,1761760250415,-151.0,0.000248,7]
[392628147,1761760250424,-151.0,0.000248,7]
[392628148,1761760250434,-674.949902,0.000248,7]
[392628149,1761760250444,-151.0,0.000248,7]
[392628150,1761760250453,-674.949902,0.000248,7]
[392628151,1761760250463,-674.949902,0.000248,7]
[392628152,1761760250473,-674.949902,0.000248,7]
[392628153,1761760250484,-151.0,0.000248,7]
[392628154,1761760250494,-151.0,0.000248,7]
[392628155,1761760250503,-151.0,0.000248,7]
[392628156,1761760250513,-151.0,0.000248,7]
[392628157,1761760250522,-217.259042,0.000248,7]
[392628158,1761760250531,-151.0,0.000248,7]
[392628159,1761760250541,-151.0,0.000248,7]
[392628160,1761760250550,-151.0,0.000248,7]
[392628161,1761760250559,-151.0,0.000248,7]
[392628162,1761760250568,-154.969891,0.000248,7]
[392628163,1761760250578,-151.0,0.000248,7]
[392628164,1761760250587,-154.969891,0.000248,7]
[392628165,1761760250596,-154.969891,0.000248,7]
[392628166,1761760250606,-154.969891,0.000248,7]
[392628167,1761760250615,-151.0,0.000248,7]
[392628168,1761760250624,-222.96022744,0.000248,7]
[392628169,1761760250634,-151.0,0.000248,7]
[392628170,1761760250643,-151.0,0.000248,7]
[392628171,1761760250653,-151.0,0.000248,7]
[392628172,1761760250662,-151.0,0.000248,7]
[392628173,1761760250672,-1466.85478021,0.000248,2]
[392628174,1761760250681,-221.88543242,0.00024818,2]
[392628175,1761760250691,-248.30148276,0.00024818,2]
[392628176,1761760250702,-152.356448,0.000249,7]
[392628177,1761760250712,-152.842325,0.000249,7]
[392628178,1761760250721,-151.0,0.000249,7]
[392628179,1761760250733,-151.0,0.000249,7]
[392628180,1761760250745,-151.0,0.000249,7]
[392628181,1761760250755,-151.0,0.000249,7]
[392628182,1761760250765,-151.0,0.000249,7]
[392628183,1761760250775,-151.0,0.000249,7]
[392628184,1761760250784,-151.0,0.000249,7]
[392628185,1761760250793,-151.0,0.000249,7]
[392628186,1761760250802,-151.0,0.000249,7]
[392628187,1761760250811,-151.0,0.000249,7]
[392628188,1761760250820,-151.0,0.000249,7]
[392628189,1761760250830,-154.951623,0.000249,7]
[392628190,1761760250839,-151.0,0.000249,7]
[392628191,1761760250848,-154.951623,0.000249,7]
[392628192,1761760250858,-151.0,0.000249,7]
[392628193,1761760250868,-154.951623,0.000249,7]
[392628194,1761760250878,-154.951623,0.000249,7]
[392628195,1761760250888,-151.0,0.000249,7]
[392628196,1761760250898,-151.0,0.000249,7]
[392628197,1761760250907,-151.0,0.000249,7]
[392628198,1761760250917,-161.645535,0.000249,7]
[392628199,1761760250927,-151.0,0.000249,7]
[392628200,1761760250937,-151.0,0.000249,7]
[392628201,1761760250948,-151.0,0.000249,7]
[392628202,1761760250958,-151.0,0.000249,7]
[392628203,1761760250969,-151.0,0.000249,7]
[392628204,1761760250980,-194.348586,0.000249,7]
[392628205,1761760250990,-151.0,0.000249,7]
[392628206,1761760251000,-151.0,0.000249,7]
[392628207,1761760251013,-151.0,0.000249,7]
[392628208,1761760251023,-151.0,0.000249,7]
[392628209,1761760251033,-262.660974,0.000249,7]
[392628210,1761760251042,-151.0,0.000249,7]
[392628211,1761760251052,-151.0,0.000249,7]
[392628212,1761760251062,-151.0,0.000249,7]
[392628213,1761760251071,-151.0,0.000249,7]
[392628214,1761760251082,-151.0,0.000249,7]
[392628215,1761760251093,-151.0,0.000249,7]
[392628216,1761760251103,-151.0,0.000249,7]
[392628217,1761760251114,-151.0,0.000249,7]
[392628218,1761760251123,-151.0,0.000249,7]
[392628219,1761760251135,-151.0,0.000249,7]
[392628220,1761760251144,-240.567493,0.000249,7]
[392628221,1761760251154,-240.567493,0.000249,7]
[392628222,1761760251164,-240.567493,0.000249,7]
[392628223,1761760251173,-240.567493,0.000249,7]
[392628224,1761760251182,-403.066036,0.000249,7]
[392628225,1761760251192,-152.201984,0.000249,7]
[392628226,1761760251202,-209.456135,0.000249,7]
[392628227,1761760251211,-403.066036,0.000249,7]
[392628228,1761760251221,-209.456135,0.000249,7]
[392628229,1761760251231,-209.456135,0.000249,7]
[392628230,1761760251240,-403.066036,0.000249,7]
[392628231,1761760251251,-209.456135,0.000249,7]
[392628232,1761760251261,-403.066036,0.000249,7]
[392628233,1761760251271,-151.0,0.000249,7]
[392628234,1761760251281,-151.0,0.000249,2]
[392628235,1761760251291,-151.0,0.000249,7]
[392628236,1761760251300,-151.0,0.000249,7]
[392628237,1761760251310,-290.149556,0.000249,7]
[392628238,1761760251319,-674.949902,0.000249,7]
[392628239,1761760251329,-151.0,0.000249,7]
[392628240,1761760251338,-674.949902,0.000249,7]
[392628241,1761760251347,-674.949902,0.000249,7]
[392628242,1761760251357,-526791.32007544,0.000249,2]
[392628259,1761760552698,-159.501738,0.00017985,2]
[392628260,1761760552728,-1720.9565304,0.00018634,5]
[392628261,1761760552758,-251.89964765,0.00018867,2]
[392628262,1761760552785,-244.68051691,0.00018911,2]
[392628263,1761760552818,-830.84173302,0.0001897,2]
[392628264,1761760552844,-160.0,0.00019004,2]
[392628265,1761760552873,-1200.0,0.00019008,2]
[392628266,1761760552901,-300.0,0.00019009,2]
[392628267,1761760553063,-264.24966804,0.00019009,2]
[392628268,1761760553097,-35.75033196,0.00019009,2]
[392628269,1761760553126,-300.0,0.00019009,2]
[392628270,1761760553157,-300.0,0.00019009,2]
[392628271,1761760553191,-300.0,0.00019009,2]
[392628272,1761760553224,-500.0,0.0001901,2]
[392628273,1761760553253,-500.0,0.0001901,2]
[392628274,1761760553284,-500.0,0.0001901,2]
[392628275,1761760553314,-500.0,0.0001901,2]
[392628276,1761760553343,-520.69759507,0.0001901,2]
[392628277,1761760553372,-500.0,0.0001901,2]
[392628278,1761760553405,-500.0,0.0001901,2]
[392628279,1761760553434,-500.0,0.0001901,2]
[392628280,1761760553495,-500.0,0.0001901,2]
[392628281,1761760553528,-500.0,0.0001901,2]
[392628282,1761760553560,-500.0,0.0001901,2]
[392628283,1761760553592,-327.71492566,0.0001901,2]
[392628284,1761760553623,-500.0,0.0001901,2]
[392628285,1761760553658,-500.0,0.0001901,2]
[392628286,1761760553691,-500.0,0.0001901,2]
[392628287,1761760553721,-500.0,0.0001901,2]
[392628288,1761760553756,-500.0,0.0001901,2]
[392628289,1761760553788,-207.8914152,0.0001901,2]
[392628290,1761760553821,-428.79731828,0.0001901,2]
[392628291,1761760553913,-71.20268172,0.0001901,2]
[392628292,1761760553948,-568.37735157,0.0001901,2]
[392628293,1761760553987,-500.0,0.0001901,2]
[392628294,1761760554029,-500.0,0.0001901,2]
[392628295,1761760554063,-500.0,0.0001901,2]
[392628296,1761760554098,-500.0,0.0001901,2]
[392628297,1761760554130,-500.0,0.0001901,2]
[392628298,1761760554165,-500.0,0.0001901,2]
[392628299,1761760554198,-372.44990703,0.0001901,2]
[392628300,1761760554233,-500.0,0.0001901,2]
[392628301,1761760554268,-475.95011936,0.0001901,2]
[392628302,1761760554648,190.3970847,0.000181,5]
[392628303,1761760554682,-24.04988064,0.0001901,2]
[392628304,1761760554720,-500.0,0.0001901,2]
[392628305,1761760554753,-200.12205762,0.0001901,2]
[392628306,1761760554787,-500.0,0.0001901,2]
[392628307,1761760554819,-635.31749701,0.0001901,2]
[392628308,1761760554852,-500.0,0.0001901,2]
[392628309,1761760554883,-500.0,0.0001901,2]
[392628310,1761760554914,-500.0,0.0001901,2]
[392628311,1761760554947,-500.0,0.0001901,2]
[392628312,1761760554980,-500.0,0.0001901,2]
[392628313,1761760555011,-500.0,0.0001901,2]
[392628314,1761760556020,-261.18229066,0.0001901,2]
[392628315,1761760556034,-238.81770934,0.0001901,2]
[392628316,1761760556043,-42.21342012,0.0001901,2]
[392628317,1761760556098,-457.78657988,0.0001901,2]
[392628318,1761760556129,-500.0,0.0001901,2]
[392628319,1761760556164,-500.0,0.0001901,2]
[392628320,1761760556195,-500.0,0.0001901,2]
[392628321,1761760556235,-500.0,0.0001901,2]
[392628322,1761760556270,-500.0,0.0001901,2]
[392628323,1761760556298,-500.0,0.0001901,2]
[392628324,1761760556327,-500.0,0.0001901,2]
[392628325,1761760556356,-500.0,0.0001901,2]
[392628326,1761760556385,-500.0,0.0001901,2]
[392628327,1761760556435,-500.0,0.0001901,2]
[392628328,1761760556465,-500.0,0.0001901,2]
[392628329,1761760556494,-500.0,0.0001901,2]
[392628330,1761760556525,-500.0,0.0001901,2]
[392628331,1761760556554,-500.0,0.0001901,2]
[392628332,1761760556582,-500.0,0.0001901,2]
[392628333,1761760556610,-500.0,0.0001901,2]
[392628334,1761760556638,-500.0,0.0001901,2]
[392628335,1761760556668,-500.0,0.0001901,2]
[392628336,1761760556697,-500.0,0.0001901,2]
[392628337,1761760556747,-500.0,0.0001901,2]
[392628338,1761760556775,-500.0,0.0001901,2]
[392628339,1761760556803,-500.0,0.0001901,2]
[392628340,1761760556833,-500.0,0.0001901,2]
[392628341,1761760556861,-500.0,0.0001901,2]
[392628342,1761760556890,-500.0,0.0001901,2]
[392628343,1761760557055,-500.0,0.0001901,2]
[392628344,1761760557085,-500.0,0.0001901,2]
[392628345,1761760557115,-500.0,0.0001901,2]
[392628346,1761760557143,-500.0,0.0001901,2]
[392628347,1761760557621,-84.44684024,0.0001901,2]
[392628348,1761760557635,-0.01,0.0001901,2]
[392628349,1761760561460,-415.54315976,0.0001901,2]
[392628350,1761760561489,-500.0,0.0001901,2]
[392628351,1761760561522,-500.0,0.0001901,2]
[392628352,1761760561550,-500.0,0.0001901,2]
[392628353,1761760561578,-500.0,0.0001901,2]
[392628354,1761760561605,-500.0,0.0001901,2]
[392628355,1761760561634,-500.0,0.0001901,2]
[392628356,1761760561662,-500.0,0.0001901,2]
[392628357,1761760561691,-500.0,0.0001901,2]
[392628358,1761760561722,-500.0,0.0001901,2]
[392628359,1761760561811,-265.5660617,0.0001901,2]
[392628360,1761760561841,-500.0,0.0001901,2]
[392628361,1761760561868,-500.0,0.0001901,2]
[392628362,1761760561895,-500.0,0.0001901,2]
[392628363,1761760561925,-500.0,0.0001901,2]
[392628364,1761760561953,-500.0,0.0001901,2]
[392628365,1761760561982,-500.0,0.0001901,2]
[392628366,1761760562010,-500.0,0.0001901,2]
[392628367,1761760562037,-500.0,0.0001901,2]
[392628368,1761760562066,-500.0,0.0001901,2]
[392628369,1761760562143,-500.0,0.0001901,2]
[392628370,1761760562397,-137.80155708,0.0001901,2]
[392628371,1761760562410,-500.0,0.0001901,2]
[392628372,1761760562426,-9000.01,0.0001901,2]
[392628373,1761760562438,-10000.01,0.0001901,2]
[392628374,1761760567510,-10000.01,0.0001901,2]
[392628375,1761760567611,-10000.01,0.0001901,2]
[392628377,1761760573527,-10000.01,0.0001901,2]
[392628378,1761760573678,-362.14844292,0.0001901,2]
[392628379,1761760573705,-500.0,0.0001901,2]
[392628380,1761760581400,190.00416204,0.00016814,2]
[392628381,1761760582018,190.00416204,0.00016814,2]
[392628402,1761760666821,169.027916,9.025e-05,2]
[392628403,1761760667086,169.027916,0.00013538,2]
[392628408,1761760732987,170.019357,0.00030137,120]
[392628417,1761760781399,5000.0,0.000181,5]
[392628418,1761760789711,5000.0,0.000181,5]
[392628420,1761760805830,522.24187057,0.000181,5]
[392628421,1761760814886,1648.83723264,0.000181,5]
[392628423,1761760832145,5000.0,0.0001743,2]
[392628432,1761760930779,1101.97,0.0001743,2]
[392628447,1761761122236,1544.14802848,0.0001743,2]
[392628451,1761761236133,-250.0,0.00017773,2]
[392628452,1761761236155,-249.8616547,0.00017793,2]
[392628453,1761761236176,-257.29924645,0.00017812,2]
[392628454,1761761236200,-169.027916,0.00018051,2]
[392628455,1761761236222,-96.31967411,0.00018195,2]
[392628456,1761761243152,-68.44196889,0.00018195,2]
[392628457,1761761243172,-664.67338644,0.0001897,2]
[392628458,1761761243192,-300.0,0.00018997,2]
[392628459,1761761243211,-835.0,0.00018997,2]
[392628460,1761761243231,-300.0,0.00018997,2]
[392628461,1761761243251,-799.0,0.00018998,2]
[392628462,1761761243272,-500.0,0.00018998,2]
[392628463,1761761243292,-179.04966439,0.00018998,2]
[392628464,1761761243318,-500.0,0.00018998,2]
[392628465,1761761243341,-500.0,0.00018998,2]
[392628466,1761761243365,-500.0,0.00018998,2]
[392628467,1761761243390,-500.0,0.00018998,2]
[392628468,1761761243411,-185.7364377,0.00018998,2]
[392628469,1761761251119,-314.2635623,0.00018998,2]
[392628470,1761761251140,-94.05136139,0.00018998,2]
[392628471,1761761254072,-311.05273109,0.00018998,2]
[392628472,1761761254122,-94.89590752,0.00018998,2]
[392628473,1761761254144,-106.281836,0.00018998,2]
[392628474,1761761361100,-214.09545227,0.00018898,2]
[392628475,1761761364698,872.16,0.00030137,120]
[392628476,1761761369083,-500.0,0.00018997,2]
[392628477,1761761369104,-500.0,0.00018997,2]
[392628478,1761761369126,-500.0,0.00018997,2]
[392628479,1761761369145,-362.71971532,0.00018997,2]
[392628480,1761761369165,-264.58191991,0.00018997,2]
[392628481,1761761369185,-500.0,0.00018997,2]
[392628482,1761761369205,-500.0,0.00018997,2]
[392628483,1761761369226,-500.0,0.00018997,2]
[392628484,1761761369245,-500.0,0.00018997,2]
[392628485,1761761369266,-500.0,0.00018997,2]
[392628486,1761761369289,-500.0,0.00018997,2]
[392628487,1761761369310,-500.0,0.00018997,2]
[392628488,1761761369330,-500.0,0.00018997,2]